[Event "NJSK 2026 Jeugd C"]
[Site "Helmond, Netherlands"]
[Date "2026.04.29"]
[Round "7.15"]
[White "Cubuk, Armin"]
[Black "Nguyen, Paul"]
[Result "1/2-1/2"]
[TimeControl "90min/40moves + 30sec/move"]
[WhiteTitle "-"]
[BlackTitle "-"]
[WhiteFideId "40105423"]
[BlackFideId "1095072"]
[WhiteElo "1881"]
[BlackElo "1845"]

1. e4 {[%clk 01:30:57]} {[%emt 00:00:02]} e5 {[%clk 01:30:55]} {[%emt
00:00:05]} 2. Nf3 {[%clk 01:31:24]} {[%emt 00:00:04]} Nc6 {[%clk 01:31:20]}
{[%emt 00:00:05]} 3. d4 {[%clk 01:31:50]} {[%emt 00:00:03]} exd4 {[%clk
01:31:45]} {[%emt 00:00:06]} 4. Bc4 {[%clk 01:32:17]} {[%emt 00:00:03]} d6
{[%clk 01:31:54]} {[%emt 00:00:20]} 5. Nxd4 {[%clk 01:32:41]} {[%emt 00:00:06]}
Nf6 {[%clk 01:32:15]} {[%emt 00:00:10]} 6. Nc3 {[%clk 01:33:02]} {[%emt
00:00:07]} Be7 {[%clk 01:32:42]} {[%emt 00:00:05]} 7. O-O {[%clk 01:33:16]}
{[%emt 00:00:16]} O-O {[%clk 01:33:06]} {[%emt 00:00:06]} 8. Re1 {[%clk
01:33:05]} {[%emt 00:00:40]} a6 {[%clk 01:32:34]} {[%emt 00:01:02]} 9. a4
{[%clk 01:32:30]} {[%emt 00:01:05]} Re8 {[%clk 01:31:44]} {[%emt 00:01:21]} 10.
h3 {[%clk 01:32:19]} {[%emt 00:00:40]} h6 {[%clk 01:30:17]} {[%emt 00:01:57]}
11. Bf4 {[%clk 01:31:25]} {[%emt 00:01:24]} Bf8 {[%clk 01:28:01]} {[%emt
00:02:48]} 12. Qd2 {[%clk 01:29:47]} {[%emt 00:02:07]} g5 {[%clk 01:23:08]}
{[%emt 00:05:23]} 13. Bh2 {[%clk 01:28:42]} {[%emt 00:01:34]} Bg7 {[%clk
01:23:23]} {[%emt 00:00:16]} 14. Nxc6 {[%clk 01:21:17]} {[%emt 00:07:53]} bxc6
{[%clk 01:23:43]} {[%emt 00:00:12]} 15. Rad1 {[%clk 01:21:23]} {[%emt
00:00:24]} Be6 {[%clk 01:17:19]} {[%emt 00:06:54]} 16. Bxe6 {[%clk 01:09:17]}
{[%emt 00:12:37]} Rxe6 {[%clk 01:17:44]} {[%emt 00:00:05]} 17. e5 {[%clk
01:02:10]} {[%emt 00:07:37]} Ne8 {[%clk 01:16:39]} {[%emt 00:01:34]} 18. f4
{[%clk 01:01:25]} {[%emt 00:01:16]} gxf4 {[%clk 01:13:51]} {[%emt 00:03:18]} 19.
Bxf4 {[%clk 01:00:59]} {[%emt 00:00:54]} Qe7 {[%clk 01:13:38]} {[%emt
00:00:44]} 20. exd6 {[%clk 00:53:21]} {[%emt 00:08:08]} cxd6 {[%clk 01:13:54]}
{[%emt 00:00:14]} 21. Rxe6 {[%clk 00:52:27]} {[%emt 00:01:24]} Qxe6 {[%clk
01:14:18]} {[%emt 00:00:06]} 22. Re1 {[%clk 00:47:30]} {[%emt 00:05:27]} Qf6
{[%clk 01:11:56]} {[%emt 00:02:53]} 23. Ne4 {[%clk 00:38:28]} {[%emt 00:09:32]}
Qd4+ {[%clk 01:06:33]} {[%emt 00:05:53]} 24. Qxd4 {[%clk 00:38:18]} {[%emt
00:00:40]} Bxd4+ {[%clk 01:06:51]} {[%emt 00:00:12]} 25. Kf1 {[%clk 00:37:45]}
{[%emt 00:01:02]} d5 {[%clk 01:07:14]} {[%emt 00:00:09]} 26. c3 {[%clk
00:34:43]} {[%emt 00:03:31]} Bg7 {[%emt 00:07:19]} 27. Nd6 {[%clk 00:31:21]}
Nxd6 {[%clk 01:04:36]} {[%emt 00:00:11]} 28. Bxd6 {[%clk 00:31:50]} Rd8 {[%clk
01:02:55]} {[%emt 00:02:12]} 29. Be5 {[%clk 00:31:29]} {[%emt 00:00:51]} c5
{[%clk 01:02:55]} {[%emt 00:00:30]} 30. Bxg7 {[%clk 00:31:18]} {[%emt
00:00:40]} Kxg7 {[%clk 01:03:18]} {[%emt 00:00:07]} 31. Kf2 {[%clk 00:27:08]}
{[%emt 00:04:40]} Kf6 {[%clk 01:03:01]} {[%emt 00:00:47]} 32. Kf3 {[%clk
00:27:28]} {[%emt 00:00:10]} d4 {[%clk 01:02:22]} {[%emt 00:01:10]} 33. cxd4
{[%clk 00:25:51]} {[%emt 00:02:06]} cxd4 {[%clk 01:02:47]} {[%emt 00:00:05]} 34.
Kf4 {[%clk 00:22:41]} {[%emt 00:03:41]} a5 {[%clk 01:02:05]} {[%emt 00:01:12]}
35. g4 {[%clk 00:21:56]} {[%emt 00:01:14]} Rb8 {[%clk 01:02:01]} {[%emt
00:00:35]} 36. Rd1 {[%clk 00:21:43]} {[%emt 00:00:42]} Rb4 {[%clk 00:59:17]}
{[%emt 00:03:14]} 37. Ke4 {[%clk 00:19:13]} {[%emt 00:03:01]} Rxa4 {[%clk
00:59:36]} {[%emt 00:00:11]} 38. Rxd4 {[%clk 00:19:22]} {[%emt 00:00:20]} Ra2
{[%clk 00:59:03]} {[%emt 00:01:04]} 39. b4 {[%clk 00:19:00]} {[%emt 00:00:52]}
a4 {[%clk 00:58:40]} {[%emt 00:00:53]} 40. b5 {[%clk 00:19:10]} {[%emt
00:00:20]} a3 {[%clk 00:59:05]} {[%emt 00:00:05]} 41. Ra4 {[%clk 00:18:24]}
{[%emt 00:01:16]} Ra1 {[%clk 00:58:41]} {[%emt 00:00:54]} 42. b6 {[%clk
00:18:22]} {[%emt 00:00:32]} a2 {[%clk 00:58:36]} {[%emt 00:00:35]} 43. b7
{[%clk 00:18:10]} {[%emt 00:00:42]} Rb1 {[%clk 00:59:00]} {[%emt 00:00:07]} 44.
Rxa2 {[%clk 00:18:03]} {[%emt 00:00:37]} Rxb7 {[%clk 00:59:25]} {[%emt
00:00:04]} 45. Ra6+ {[%clk 00:17:55]} {[%emt 00:00:38]} Kg5 {[%clk 00:59:47]}
{[%emt 00:00:07]} 46. Ra5+ {[%clk 00:18:19]} {[%emt 00:00:07]} Kg6 {[%clk
01:00:10]} {[%emt 00:00:06]} 47. Kf4 {[%clk 00:18:10]} {[%emt 00:00:38]} Rb4+
{[%clk 01:00:33]} {[%emt 00:00:09]} 48. Kg3 {[%clk 00:18:33]} {[%emt 00:00:06]}
Rb6 {[%clk 01:00:34]} {[%emt 00:00:29]} 49. Kh4 {[%clk 00:18:32]} {[%emt
00:00:30]} Rc6 {[%clk 01:00:57]} {[%emt 00:00:08]} 1/2-1/2

[Event "NJSK 2026 Jeugd C"]
[Site "Helmond, Netherlands"]
[Date "2026.04.29"]
[Round "7.17"]
[White "Brorens, Victor"]
[Black "Roersma, Dylan"]
[Result "1-0"]
[TimeControl "90min/40moves + 30sec/move"]
[WhiteTitle "-"]
[BlackTitle "-"]
[WhiteFideId "1095307"]
[BlackFideId "1097393"]
[WhiteElo "1911"]
[BlackElo "1846"]

1. e4 {[%emt 00:03:32]} c5 {[%clk 01:27:50]} {[%emt 00:00:30]} 2. Nf3 {[%clk
01:30:35]} {[%emt 00:00:03]} Nc6 {[%clk 01:28:14]} {[%emt 00:00:05]} 3. d4
{[%clk 01:31:02]} {[%emt 00:00:03]} cxd4 {[%clk 01:28:40]} {[%emt 00:00:04]} 4.
Nxd4 {[%clk 01:31:31]} e5 {[%clk 01:29:01]} {[%emt 00:00:08]} 5. Nb5 {[%clk
01:32:00]} {[%emt 00:00:02]} d6 {[%clk 01:29:27]} {[%emt 00:00:04]} 6. N1c3
{[%clk 01:32:16]} {[%emt 00:00:14]} a6 {[%clk 01:29:53]} {[%emt 00:00:04]} 7.
Na3 {[%clk 01:32:41]} {[%emt 00:00:05]} b5 {[%clk 01:30:20]} {[%emt 00:00:03]}
8. Nd5 {[%clk 01:33:08]} {[%emt 00:00:03]} Nf6 {[%clk 01:30:47]} {[%emt
00:00:05]} 9. Bg5 {[%clk 01:33:33]} {[%emt 00:00:04]} Be7 {[%clk 01:31:14]}
{[%emt 00:00:03]} 10. Bxf6 {[%clk 01:32:53]} {[%emt 00:01:10]} Bxf6 {[%clk
01:31:04]} {[%emt 00:00:39]} 11. Bd3 {[%clk 01:32:46]} {[%emt 00:00:37]} Bg5
{[%clk 01:30:30]} {[%emt 00:01:04]} 12. O-O {[%clk 01:32:27]} {[%emt 00:00:49]}
O-O {[%clk 01:29:54]} {[%emt 00:01:07]} 13. c3 {[%clk 01:31:39]} {[%emt
00:01:17]} Be6 {[%clk 01:29:23]} {[%emt 00:01:01]} 14. Nc2 {[%clk 01:31:44]}
{[%emt 00:00:25]} Bxd5 {[%clk 01:25:37]} {[%emt 00:04:16]} 15. exd5 {[%clk
01:30:45]} {[%emt 00:01:29]} Ne7 {[%clk 01:26:03]} {[%emt 00:00:05]} 16. Be2
{[%clk 01:30:28]} {[%emt 00:00:46]} Rb8 {[%clk 01:25:55]} {[%emt 00:00:39]} 17.
a4 {[%clk 01:28:58]} {[%emt 00:02:00]} Qc7 {[%clk 01:17:30]} {[%emt 00:08:54]}
18. Nb4 {[%clk 01:21:44]} {[%emt 00:07:44]} Qb6 {[%clk 01:11:54]} {[%emt
00:06:06]} 19. axb5 {[%clk 01:21:27]} {[%emt 00:00:46]} axb5 {[%clk 01:12:09]}
{[%emt 00:00:16]} 20. Ra6 {[%clk 01:21:44]} {[%emt 00:00:13]} Qc5 {[%clk
01:05:49]} {[%emt 00:06:51]} 21. Qd3 {[%clk 01:16:33]} {[%emt 00:05:41]} f5
{[%clk 00:48:45]} {[%emt 00:17:34]} 22. Rfa1 {[%clk 01:11:48]} {[%emt
00:05:15]} Rfc8 {[%clk 00:36:14]} {[%emt 00:13:01]} 23. R6a5 {[%clk 01:08:18]}
{[%emt 00:03:59]} Qb6 {[%clk 00:14:06]} {[%emt 00:22:38]} 24. Rxb5 {[%clk
01:04:47]} {[%emt 00:04:01]} Qd8 {[%clk 00:10:55]} {[%emt 00:03:42]} 25. Nc6
{[%clk 01:02:09]} {[%emt 00:03:08]} Nxc6 {[%clk 00:10:22]} {[%emt 00:01:02]} 26.
dxc6 {[%clk 01:02:36]} {[%emt 00:00:03]} Rxb5 {[%clk 00:10:17]} {[%emt
00:00:36]} 27. Qxb5 {[%clk 01:03:00]} {[%emt 00:00:06]} Qc7 {[%clk 00:10:19]}
{[%emt 00:00:28]} 28. Bc4+ {[%clk 01:00:57]} {[%emt 00:02:33]} Kh8 {[%clk
00:10:28]} {[%emt 00:00:20]} 29. Ra6 {[%clk 01:00:55]} {[%emt 00:00:33]} Rb8
{[%clk 00:05:41]} {[%emt 00:05:17]} 30. Qd5 {[%clk 01:01:10]} {[%emt 00:00:14]}
g6 {[%clk 00:01:58]} {[%emt 00:04:13]} 31. b4 {[%clk 01:01:02]} {[%emt
00:00:39]} Bf6 {[%clk 00:01:37]} {[%emt 00:00:51]} 32. b5 {[%clk 01:00:59]}
{[%emt 00:00:33]} e4 {[%clk 00:00:34]} {[%emt 00:01:32]} 33. b6 {[%clk
01:01:09]} {[%emt 00:00:21]} Qe7 {[%clk 00:00:32]} {[%emt 00:00:32]} 34. c7
{[%clk 01:01:20]} {[%emt 00:00:19]} Re8 {[%clk 00:00:39]} {[%emt 00:00:22]} 35.
Ra8 {[%clk 01:01:24]} {[%emt 00:00:27]} e3 {[%clk 00:00:32]} {[%emt 00:00:37]}
36. Qg8+ {[%clk 01:01:38]} {[%emt 00:00:16]} 1-0

[Event "NJSK 2026 Jeugd C"]
[Site "Helmond, Netherlands"]
[Date "2026.04.30"]
[Round "8.1"]
[White "Guillaumond, Matthieu"]
[Black "Zhou, Yanyang"]
[Result "1/2-1/2"]
[TimeControl "90min/40moves + 30sec/move"]
[WhiteTitle "-"]
[BlackTitle "-"]
[WhiteFideId "1097091"]
[BlackFideId "40109739"]
[WhiteElo "2104"]
[BlackElo "1860"]

1. e4 {[%clk 01:30:58]} c5 {[%clk 01:30:56]} {[%emt 00:00:05]} 2. Nf3 {[%clk
01:31:24]} {[%emt 00:00:04]} e6 {[%clk 01:31:23]} {[%emt 00:00:03]} 3. d4
{[%clk 01:31:49]} {[%emt 00:00:05]} cxd4 {[%clk 01:31:49]} {[%emt 00:00:04]} 4.
Nxd4 {[%clk 01:32:13]} {[%emt 00:00:05]} Nc6 {[%clk 01:32:16]} {[%emt
00:00:05]} 5. Nc3 {[%clk 01:32:38]} {[%emt 00:00:06]} Qc7 {[%clk 01:32:42]}
{[%emt 00:00:06]} 6. Be3 {[%clk 01:33:03]} {[%emt 00:00:03]} a6 {[%clk
01:33:07]} {[%emt 00:00:03]} 7. a3 {[%clk 01:33:30]} {[%emt 00:00:03]} Nf6
{[%clk 01:33:02]} {[%emt 00:00:35]} 8. f4 {[%clk 01:33:54]} {[%emt 00:00:07]}
d6 {[%clk 01:32:52]} {[%emt 00:00:40]} 9. Qf3 {[%clk 01:34:13]} {[%emt
00:00:10]} Be7 {[%clk 01:32:35]} {[%emt 00:00:47]} 10. O-O-O {[%clk 01:34:36]}
{[%emt 00:00:07]} Bd7 {[%clk 01:30:40]} {[%emt 00:02:25]} 11. Rg1 {[%clk
01:28:37]} {[%emt 00:06:29]} Nxd4 {[%clk 01:30:16]} {[%emt 00:00:54]} 12. Rxd4
{[%clk 01:28:35]} {[%emt 00:00:32]} Bc6 {[%clk 01:27:59]} {[%emt 00:02:47]} 13.
g4 {[%clk 01:25:13]} {[%emt 00:03:52]} b5 {[%clk 01:26:10]} {[%emt 00:02:19]}
14. g5 {[%clk 01:16:17]} {[%emt 00:09:25]} Nd7 {[%clk 01:26:10]} {[%emt
00:00:30]} 15. h4 {[%clk 01:16:45]} {[%emt 00:00:03]} Rb8 {[%clk 01:19:53]}
{[%emt 00:06:47]} 16. Qd1 {[%clk 00:47:37]} {[%emt 00:29:37]} a5 {[%clk
01:13:42]} {[%emt 00:06:42]} 17. a4 {[%clk 00:46:14]} {[%emt 00:01:53]} e5
{[%clk 01:06:51]} {[%emt 00:07:20]} 18. fxe5 {[%clk 00:35:25]} {[%emt
00:11:20]} dxe5 {[%clk 01:04:54]} {[%emt 00:02:25]} 19. Nd5 {[%clk 00:23:26]}
{[%emt 00:12:30]} Qb7 {[%clk 01:01:43]} {[%emt 00:03:41]} 20. Nxe7 {[%clk
00:22:36]} {[%emt 00:01:22]} Kxe7 {[%clk 00:59:51]} {[%emt 00:02:21]} 21. Rxd7+
{[%clk 00:22:16]} {[%emt 00:00:51]} Qxd7 {[%clk 00:59:03]} {[%emt 00:01:18]} 22.
Bc5+ {[%clk 00:22:42]} {[%emt 00:00:03]} Ke8 {[%clk 00:58:44]} {[%emt
00:00:49]} 23. Qf3 {[%clk 00:22:58]} {[%emt 00:00:14]} Qe6 {[%clk 00:52:41]}
{[%emt 00:06:33]} 24. b3 {[%clk 00:08:18]} {[%emt 00:15:11]} 1/2-1/2

[Event "NJSK 2026 Jeugd C"]
[Site "Helmond, Netherlands"]
[Date "2026.04.30"]
[Round "8.2"]
[White "Teianu, Sabin"]
[Black "Leenen, Boyd"]
[Result "1-0"]
[TimeControl "90min/40moves + 30sec/move"]
[WhiteTitle "-"]
[BlackTitle "-"]
[WhiteFideId "1095846"]
[BlackFideId "1083937"]
[WhiteElo "2131"]
[BlackElo "2205"]

1. d4 {[%clk 01:30:58]} {[%emt 00:00:01]} Nf6 {[%clk 01:30:51]} {[%emt
00:00:10]} 2. c4 {[%clk 01:31:23]} {[%emt 00:00:04]} e6 {[%clk 01:31:18]}
{[%emt 00:00:03]} 3. Nf3 {[%clk 01:31:48]} {[%emt 00:00:05]} b6 {[%clk
01:31:42]} {[%emt 00:00:09]} 4. g3 {[%clk 01:32:15]} Ba6 {[%clk 01:32:09]}
{[%emt 00:00:05]} 5. b3 {[%clk 01:32:41]} {[%emt 00:00:05]} Bb4+ {[%clk
01:31:15]} {[%emt 00:01:20]} 6. Bd2 {[%clk 01:33:04]} {[%emt 00:00:07]} Be7
{[%clk 01:31:33]} {[%emt 00:00:11]} 7. Nc3 {[%clk 01:33:29]} {[%emt 00:00:06]}
d5 {[%clk 01:31:36]} {[%emt 00:00:27]} 8. cxd5 {[%clk 01:33:49]} {[%emt
00:00:10]} exd5 {[%clk 01:31:50]} {[%emt 00:00:16]} 9. Bg2 {[%clk 01:34:13]}
{[%emt 00:00:07]} O-O {[%clk 01:31:37]} {[%emt 00:00:43]} 10. O-O {[%clk
01:34:39]} {[%emt 00:00:05]} c5 {[%clk 01:23:44]} {[%emt 00:08:24]} 11. dxc5
{[%clk 01:33:29]} {[%emt 00:01:39]} bxc5 {[%clk 01:23:31]} {[%emt 00:00:43]} 12.
Ne5 {[%clk 01:33:42]} {[%emt 00:00:17]} Bb7 {[%clk 01:19:10]} {[%emt 00:04:51]}
13. Bf4 {[%clk 01:33:24]} {[%emt 00:00:47]} Re8 {[%clk 01:13:58]} {[%emt
00:05:41]} 14. a4 {[%clk 01:23:26]} {[%emt 00:10:28]} h6 {[%clk 01:03:17]}
{[%emt 00:11:10]} 15. Nc4 {[%clk 01:16:27]} {[%emt 00:07:29]} Bc6 {[%clk
00:58:36]} {[%emt 00:05:12]} 16. Ne5 {[%clk 01:14:26]} {[%emt 00:02:31]} Bb7
{[%clk 00:58:47]} {[%emt 00:00:19]} 17. h4 {[%clk 00:51:48]} {[%emt 00:23:07]}
Bf8 {[%clk 00:52:28]} {[%emt 00:06:48]} 18. Ra2 {[%clk 00:51:04]} {[%emt
00:01:15]} g5 {[%clk 00:46:11]} {[%emt 00:06:47]} 19. hxg5 {[%clk 00:51:04]}
{[%emt 00:00:29]} hxg5 {[%clk 00:46:19]} {[%emt 00:00:23]} 20. Nxf7 {[%clk
00:51:28]} {[%emt 00:00:06]} Kxf7 {[%clk 00:46:48]} {[%emt 00:00:02]} 21. Bxg5
{[%clk 00:51:46]} {[%emt 00:00:12]} Be7 {[%clk 00:29:59]} {[%emt 00:17:18]} 22.
Bxf6 {[%clk 00:47:07]} {[%emt 00:05:08]} Bxf6 {[%clk 00:30:28]} {[%emt
00:00:02]} 23. Nxd5 {[%clk 00:47:26]} {[%emt 00:00:12]} Bd4 {[%clk 00:24:42]}
{[%emt 00:06:15]} 24. e3 {[%clk 00:47:39]} {[%emt 00:00:16]} Bh8 {[%clk
00:12:36]} {[%emt 00:12:36]} 25. Qh5+ {[%clk 00:46:49]} {[%emt 00:01:20]} Kg7
{[%clk 00:12:49]} {[%emt 00:00:17]} 26. Nc7 {[%clk 00:41:13]} {[%emt 00:06:06]}
Qxc7 {[%clk 00:13:05]} {[%emt 00:00:15]} 27. Bxb7 {[%clk 00:41:34]} {[%emt
00:00:09]} Qxb7 {[%clk 00:13:23]} {[%emt 00:00:12]} 28. Qxe8 {[%clk 00:41:56]}
{[%emt 00:00:08]} Nc6 {[%clk 00:13:35]} {[%emt 00:00:18]} 29. Qe4 {[%clk
00:40:00]} {[%emt 00:02:26]} Rd8 {[%clk 00:13:11]} {[%emt 00:00:54]} 30. Rc2
{[%clk 00:39:04]} {[%emt 00:01:27]} Qb6 {[%clk 00:11:17]} {[%emt 00:02:24]} 31.
Qg4+ {[%clk 00:38:47]} {[%emt 00:00:47]} Kh7 {[%clk 00:11:39]} {[%emt
00:00:07]} 32. Qh5+ {[%clk 00:39:04]} {[%emt 00:00:13]} Kg8 {[%clk 00:12:03]}
{[%emt 00:00:06]} 33. Rxc5 {[%clk 00:38:31]} {[%emt 00:01:03]} Bg7 {[%clk
00:12:19]} {[%emt 00:00:14]} 34. Rfc1 {[%clk 00:36:35]} {[%emt 00:02:26]} Ne7
{[%clk 00:10:02]} {[%emt 00:02:48]} 35. Qh4 {[%clk 00:28:42]} {[%emt 00:08:23]}
Rd1+ {[%clk 00:09:51]} {[%emt 00:00:41]} 36. Rxd1 {[%clk 00:29:03]} {[%emt
00:00:08]} Qxc5 {[%clk 00:10:19]} {[%emt 00:00:02]} 37. b4 {[%clk 00:25:40]}
{[%emt 00:03:54]} Qc7 {[%clk 00:09:43]} {[%emt 00:01:05]} 38. a5 {[%clk
00:23:03]} {[%emt 00:03:08]} a6 {[%clk 00:08:38]} {[%emt 00:01:35]} 39. Qe4
{[%clk 00:22:35]} {[%emt 00:00:57]} Be5 {[%clk 00:07:45]} {[%emt 00:01:23]} 40.
b5 {[%clk 00:20:45]} {[%emt 00:02:21]} axb5 {[%clk 00:07:56]} {[%emt 00:00:19]}
41. a6 {[%clk 00:21:03]} {[%emt 00:00:12]} Nc8 {[%clk 00:08:05]} {[%emt
00:00:20]} 42. Qb7 {[%clk 00:20:27]} {[%emt 00:01:07]} Nb6 {[%clk 00:08:18]}
{[%emt 00:00:17]} 43. Qxc7 {[%clk 00:19:48]} {[%emt 00:01:08]} Bxc7 {[%clk
00:08:46]} {[%emt 00:00:02]} 44. Rb1 {[%clk 00:19:32]} {[%emt 00:00:46]} Kf7
{[%clk 00:09:04]} {[%emt 00:00:13]} 45. Rxb5 {[%clk 00:19:56]} {[%emt
00:00:05]} Ke7 {[%clk 00:09:30]} {[%emt 00:00:04]} 46. a7 {[%clk 00:20:13]}
{[%emt 00:00:13]} Na8 {[%clk 00:09:55]} {[%emt 00:00:06]} 47. Rb8 {[%clk
00:20:37]} {[%emt 00:00:06]} 1-0

[Event "NJSK 2026 Jeugd C"]
[Site "Helmond, Netherlands"]
[Date "2026.04.30"]
[Round "8.3"]
[White "Pathak, Raghav"]
[Black "Lenting, Roan"]
[Result "1-0"]
[TimeControl "90min/40moves + 30sec/move"]
[WhiteTitle "-"]
[BlackTitle "-"]
[WhiteFideId "1084259"]
[BlackFideId "1085905"]
[WhiteElo "2091"]
[BlackElo "1986"]

1. e4 {[%clk 01:24:44]} {[%emt 00:06:16]} c5 {[%clk 01:30:54]} {[%emt
00:00:06]} 2. Nf3 {[%clk 01:24:22]} {[%emt 00:00:51]} e6 {[%clk 01:31:19]}
{[%emt 00:00:06]} 3. b3 {[%clk 01:24:40]} {[%emt 00:00:13]} Nc6 {[%clk
01:31:17]} {[%emt 00:00:32]} 4. Bb2 {[%clk 01:25:02]} {[%emt 00:00:08]} a6
{[%clk 01:30:59]} {[%emt 00:00:47]} 5. g3 {[%clk 01:24:07]} {[%emt 00:01:25]}
d5 {[%clk 01:29:09]} {[%emt 00:02:20]} 6. exd5 {[%clk 01:23:29]} {[%emt
00:01:08]} exd5 {[%clk 01:26:53]} {[%emt 00:02:46]} 7. Qe2+ {[%clk 01:21:11]}
{[%emt 00:02:48]} Qe7 {[%clk 01:25:27]} {[%emt 00:01:56]} 8. Nc3 {[%clk
01:15:52]} {[%emt 00:05:48]} Nf6 {[%clk 01:23:23]} {[%emt 00:02:33]} 9. O-O-O
{[%clk 01:13:43]} {[%emt 00:02:39]} Qxe2 {[%clk 01:14:07]} {[%emt 00:09:46]} 10.
Bxe2 {[%clk 01:12:44]} {[%emt 00:01:29]} Be7 {[%clk 01:11:09]} {[%emt
00:03:28]} 11. d4 {[%clk 01:12:00]} {[%emt 00:01:14]} cxd4 {[%clk 01:10:55]}
{[%emt 00:00:44]} 12. Nxd4 {[%clk 01:12:02]} {[%emt 00:00:28]} O-O {[%clk
01:07:11]} {[%emt 00:04:13]} 13. Bf3 {[%clk 01:06:12]} {[%emt 00:06:21]} Rd8
{[%clk 01:02:34]} {[%emt 00:05:07]} 14. Rhe1 {[%clk 00:55:19]} {[%emt
00:11:23]} Nxd4 {[%clk 00:52:05]} {[%emt 00:10:59]} 15. Rxd4 {[%clk 00:51:38]}
{[%emt 00:04:11]} Bc5 {[%clk 00:49:33]} {[%emt 00:03:02]} 16. Rd2 {[%clk
00:50:38]} {[%emt 00:01:30]} Be6 {[%clk 00:48:00]} {[%emt 00:02:02]} 17. Red1
{[%clk 00:49:39]} {[%emt 00:01:30]} Bb4 {[%clk 00:32:54]} {[%emt 00:15:36]} 18.
a3 {[%clk 00:49:43]} {[%emt 00:00:27]} Ba5 {[%clk 00:32:16]} {[%emt 00:01:07]}
19. b4 {[%clk 00:47:58]} {[%emt 00:02:15]} Bb6 {[%clk 00:32:37]} {[%emt
00:00:09]} 20. Na4 {[%clk 00:46:07]} {[%emt 00:02:20]} Ba7 {[%clk 00:32:14]}
{[%emt 00:00:54]} 21. Bd4 {[%clk 00:45:29]} {[%emt 00:01:09]} Bxd4 {[%clk
00:31:38]} {[%emt 00:01:05]} 22. Rxd4 {[%clk 00:45:48]} {[%emt 00:00:10]} Rd6
{[%clk 00:29:00]} {[%emt 00:03:09]} 23. Kb2 {[%clk 00:44:02]} {[%emt 00:02:16]}
b5 {[%clk 00:27:46]} {[%emt 00:01:45]} 24. Nc5 {[%clk 00:44:21]} {[%emt
00:00:10]} Rc8 {[%clk 00:25:21]} {[%emt 00:02:54]} 25. h4 {[%clk 00:44:17]}
{[%emt 00:00:34]} h5 {[%clk 00:23:21]} {[%emt 00:02:29]} 26. R1d2 {[%clk
00:44:10]} {[%emt 00:00:38]} Kf8 {[%clk 00:22:18]} {[%emt 00:01:32]} 27. c4
{[%clk 00:43:18]} {[%emt 00:01:23]} bxc4 {[%clk 00:22:16]} {[%emt 00:00:32]} 28.
Rxc4 {[%clk 00:43:33]} {[%emt 00:00:15]} Ke7 {[%clk 00:21:27]} {[%emt
00:01:19]} 29. Rcd4 {[%clk 00:41:46]} {[%emt 00:02:17]} Rb6 {[%clk 00:20:38]}
{[%emt 00:01:19]} 30. Nb3 {[%clk 00:40:27]} {[%emt 00:01:49]} Rbc6 {[%clk
00:19:35]} {[%emt 00:01:33]} 31. Nc5 {[%clk 00:39:20]} {[%emt 00:01:36]} Rb6
{[%clk 00:19:27]} {[%emt 00:00:39]} 32. Ka2 {[%clk 00:39:21]} {[%emt 00:00:28]}
a5 {[%clk 00:18:48]} {[%emt 00:01:09]} 33. bxa5 {[%clk 00:27:21]} {[%emt
00:12:30]} Rb5 {[%clk 00:18:55]} {[%emt 00:00:22]} 34. Nxe6 {[%clk 00:27:35]}
{[%emt 00:00:16]} fxe6 {[%clk 00:19:16]} {[%emt 00:00:10]} 35. Ra4 {[%clk
00:26:57]} {[%emt 00:01:08]} Rcc5 {[%clk 00:12:58]} {[%emt 00:06:47]} 36. a6
{[%clk 00:27:12]} {[%emt 00:00:16]} Ra5 {[%clk 00:13:22]} {[%emt 00:00:06]} 37.
Rxa5 {[%clk 00:27:37]} {[%emt 00:00:05]} Rxa5 {[%clk 00:13:48]} {[%emt
00:00:04]} 38. Be2 {[%clk 00:27:17]} {[%emt 00:00:50]} Ne4 {[%clk 00:13:49]}
{[%emt 00:00:28]} 39. Rc2 {[%clk 00:27:31]} {[%emt 00:00:17]} Kd6 {[%clk
00:12:47]} {[%emt 00:01:32]} 40. Kb3 {[%clk 00:27:21]} {[%emt 00:00:41]} Nc5+
{[%clk 00:07:45]} {[%emt 00:05:31]} 41. Kb4 {[%clk 00:27:01]} {[%emt 00:00:49]}
Ra4+ {[%clk 00:08:09]} {[%emt 00:00:07]} 42. Kb5 {[%clk 00:27:26]} {[%emt
00:00:05]} Rxa3 {[%clk 00:08:33]} {[%emt 00:00:06]} 43. Rxc5 {[%clk 00:27:43]}
{[%emt 00:00:13]} Ra2 {[%clk 00:08:28]} {[%emt 00:00:36]} 44. Kb6 {[%clk
00:27:04]} {[%emt 00:01:09]} Rxe2 {[%clk 00:08:21]} {[%emt 00:00:36]} 45. a7
{[%clk 00:27:24]} {[%emt 00:00:09]} Ra2 {[%clk 00:08:37]} {[%emt 00:00:14]} 46.
Ra5 {[%clk 00:27:40]} {[%emt 00:00:15]} Rb2+ {[%clk 00:09:01]} {[%emt
00:00:06]} 47. Ka6 {[%clk 00:27:57]} {[%emt 00:00:14]} Kc7 {[%clk 00:09:18]}
{[%emt 00:00:12]} 48. a8=Q {[%clk 00:27:58]} {[%emt 00:00:29]} Rb6+ {[%clk
00:09:40]} {[%emt 00:00:08]} 49. Ka7 {[%clk 00:28:25]} {[%emt 00:00:03]} 1-0